[Event "Late-Titled-Tuesday-Blitz-April-23-2024"]
[Site "Chess.com"]
[Date "2024.04.23"]
[Round "2"]
[White "Ajedrez_con_German"]
[Black "Njal28"]
[Result "0-1"]
[WhiteElo "2649"]
[BlackElo "3030"]
[TimeControl "180+1"]
[EndTime "14:18:21 PDT"]
[Termination "Njal28 won by resignation"]

1. a3 {[%clk 0:03:00.9]} 1... Nf6 {[%clk 0:02:59.2]} 2. c4 {[%clk 0:02:45.1]}
2... g6 {[%clk 0:02:53.3]} 3. Nf3 {[%clk 0:02:42.9]} 3... Bg7 {[%clk 0:02:52.2]}
4. Nc3 {[%clk 0:02:41.3]} 4... O-O {[%clk 0:02:48.6]} 5. d4 {[%clk 0:02:36.4]}
5... d5 {[%clk 0:02:27.6]} 6. cxd5 {[%clk 0:02:24.3]} 6... Nxd5 {[%clk
0:01:56.3]} 7. Bd2 {[%clk 0:02:20.6]} 7... c5 {[%clk 0:01:55.2]} 8. e4 {[%clk
0:02:19.1]} 8... Nxc3 {[%clk 0:01:55.5]} 9. Bxc3 {[%clk 0:02:19.7]} 9... cxd4
{[%clk 0:01:55.4]} 10. Bxd4 {[%clk 0:02:20.2]} 10... Nc6 {[%clk 0:01:55.7]} 11.
Bxg7 {[%clk 0:02:19.4]} 11... Kxg7 {[%clk 0:01:56.6]} 12. Qxd8 {[%clk
0:02:09.4]} 12... Rxd8 {[%clk 0:01:57.5]} 13. Be2 {[%clk 0:02:08.4]} 13... Bg4
{[%clk 0:01:57]} 14. O-O {[%clk 0:02:06.4]} 14... Rac8 {[%clk 0:01:55.5]} 15.
Rfd1 {[%clk 0:02:05.4]} 15... Bxf3 {[%clk 0:01:51]} 16. Bxf3 {[%clk 0:02:05.3]}
16... Ne5 {[%clk 0:01:47.2]} 17. Rxd8 {[%clk 0:01:58.1]} 17... Rxd8 {[%clk
0:01:48.1]} 18. Rb1 {[%clk 0:01:33.6]} 18... Rd2 {[%clk 0:01:45.7]} 19. Kf1
{[%clk 0:01:33.7]} 19... Nc4 {[%clk 0:01:37.2]} 20. Ke1 {[%clk 0:01:30.6]} 20...
Rxb2 {[%clk 0:01:36.2]} 21. Rxb2 {[%clk 0:01:27.3]} 21... Nxb2 {[%clk
0:01:37.1]} 22. Be2 {[%clk 0:01:11.1]} 22... Na4 {[%clk 0:00:51.6]} 23. Kd2
{[%clk 0:01:11.3]} 23... Nc5 {[%clk 0:00:49.8]} 24. f3 {[%clk 0:01:08.5]} 24...
Kf6 {[%clk 0:00:25.8]} 25. Kc3 {[%clk 0:01:08.9]} 25... Ke6 {[%clk 0:00:25.6]}
26. Kc4 {[%clk 0:01:09.5]} 26... Kd6 {[%clk 0:00:25.3]} 27. Kb5 {[%clk
0:00:56.4]} 27... b6 {[%clk 0:00:26.2]} 28. Bc4 {[%clk 0:00:50.6]} 28... e6
{[%clk 0:00:26.8]} 29. Kb4 {[%clk 0:00:40.5]} 29... g5 {[%clk 0:00:26.3]} 30.
Bb5 {[%clk 0:00:34]} 30... h6 {[%clk 0:00:26.3]} 31. Kc4 {[%clk 0:00:34.1]}
31... f6 {[%clk 0:00:26.7]} 32. Be8 {[%clk 0:00:30.3]} 32... e5 {[%clk
0:00:27.6]} 33. g3 {[%clk 0:00:23.7]} 33... Ne6 {[%clk 0:00:25.8]} 34. Bh5
{[%clk 0:00:18.8]} 34... Nd4 {[%clk 0:00:25.6]} 35. f4 {[%clk 0:00:19.4]} 35...
gxf4 {[%clk 0:00:25.9]} 36. gxf4 {[%clk 0:00:19.8]} 36... Ne6 {[%clk 0:00:26.8]}
37. f5 {[%clk 0:00:17.9]} 37... Nc5 {[%clk 0:00:27.7]} 38. Bf3 {[%clk
0:00:17.8]} 38... Kc6 {[%clk 0:00:28.2]} 39. Kb4 {[%clk 0:00:18.2]} 39... a5+
{[%clk 0:00:28.6]} 40. Kc4 {[%clk 0:00:18.8]} 40... b5+ {[%clk 0:00:29.4]} 41.
Kc3 {[%clk 0:00:19.2]} 41... Na6 {[%clk 0:00:29.5]} 42. Be2 {[%clk 0:00:18.6]}
42... Kc5 {[%clk 0:00:30.2]} 43. a4 {[%clk 0:00:17.1]} 43... b4+ {[%clk
0:00:30.6]} 44. Kc2 {[%clk 0:00:17.4]} 44... Nb8 {[%clk 0:00:31.5]} 45. Kb3
{[%clk 0:00:17.7]} 45... Nc6 {[%clk 0:00:32.4]} 46. Kc2 {[%clk 0:00:16.9]} 46...
Nd4+ {[%clk 0:00:33.3]} 47. Kd3 {[%clk 0:00:16.7]} 47... Nxe2 {[%clk 0:00:34.2]}
0-1

[Event "Late-Titled-Tuesday-Blitz-April-23-2024"]
[Site "Chess.com"]
[Date "2024.04.23"]
[Round "2"]
[White "ural58"]
[Black "AlexeiShirov"]
[Result "0-1"]
[WhiteElo "2562"]
[BlackElo "2803"]
[TimeControl "180+1"]
[EndTime "14:18:22 PDT"]
[Termination "AlexeiShirov won on time"]

1. e4 {[%clk 0:02:42.1]} 1... e5 {[%clk 0:02:59.8]} 2. Nf3 {[%clk 0:02:38.7]}
2... f5 {[%clk 0:02:59.8]} 3. d4 {[%clk 0:02:27.5]} 3... fxe4 {[%clk 0:02:55.5]}
4. Nxe5 {[%clk 0:02:27.3]} 4... Nf6 {[%clk 0:02:54.8]} 5. Nc3 {[%clk 0:02:15.3]}
5... d6 {[%clk 0:02:52.2]} 6. Nc4 {[%clk 0:02:10.1]} 6... d5 {[%clk 0:02:49.2]}
7. Ne5 {[%clk 0:02:07.9]} 7... Be7 {[%clk 0:02:43.1]} 8. f3 {[%clk 0:02:07.4]}
8... exf3 {[%clk 0:02:38.2]} 9. Qxf3 {[%clk 0:02:05.8]} 9... O-O {[%clk
0:02:38]} 10. Bd3 {[%clk 0:02:04.5]} 10... Ne4 {[%clk 0:02:34.2]} 11. Bxe4
{[%clk 0:02:02.2]} 11... Rxf3 {[%clk 0:02:13.8]} 12. Bxd5+ {[%clk 0:02:01.9]}
12... Kf8 {[%clk 0:02:10.9]} 13. Bxf3 {[%clk 0:01:55.2]} 13... Qxd4 {[%clk
0:02:08.5]} 14. Nd3 {[%clk 0:01:45.1]} 14... Nc6 {[%clk 0:02:01.3]} 15. Bd2
{[%clk 0:01:44]} 15... Bf5 {[%clk 0:01:50.3]} 16. O-O-O {[%clk 0:01:42.7]} 16...
Bxd3 {[%clk 0:01:49.4]} 17. cxd3 {[%clk 0:01:36.3]} 17... Nb4 {[%clk 0:01:42.9]}
18. Be4 {[%clk 0:01:23.6]} 18... Nxd3+ {[%clk 0:01:34.9]} 19. Kb1 {[%clk
0:01:21.9]} 19... Nf2 {[%clk 0:01:32.7]} 20. Rhf1 {[%clk 0:01:19.6]} 20... Bf6
{[%clk 0:01:31.9]} 21. Rxf2 {[%clk 0:01:00.3]} 21... Qxf2 {[%clk 0:01:29.6]} 22.
Bxb7 {[%clk 0:00:58.8]} 22... Rd8 {[%clk 0:01:24.7]} 23. Kc2 {[%clk 0:00:55.1]}
23... Kg8 {[%clk 0:01:12.1]} 24. Bf3 {[%clk 0:00:48.4]} 24... Qc5 {[%clk
0:01:00.3]} 25. Re1 {[%clk 0:00:37.9]} 25... h6 {[%clk 0:00:55.6]} 26. h3 {[%clk
0:00:31.2]} 26... Bg5 {[%clk 0:00:50.7]} 27. Bxg5 {[%clk 0:00:28.2]} 27... Qxg5
{[%clk 0:00:50.4]} 28. Re2 {[%clk 0:00:27.9]} 28... Qc5 {[%clk 0:00:49.2]} 29.
a3 {[%clk 0:00:27.6]} 29... a5 {[%clk 0:00:48.5]} 30. Kc1 {[%clk 0:00:23.6]}
30... Qd4 {[%clk 0:00:46]} 31. Kc2 {[%clk 0:00:21.9]} 31... Qd3+ {[%clk
0:00:44.5]} 32. Kc1 {[%clk 0:00:21.8]} 32... c5 {[%clk 0:00:44]} 33. Be4 {[%clk
0:00:20.8]} 33... Qd4 {[%clk 0:00:43.3]} 34. Kc2 {[%clk 0:00:20.2]} 34... g5
{[%clk 0:00:39.6]} 35. b3 {[%clk 0:00:19.3]} 35... Rf8 {[%clk 0:00:37.9]} 36.
Bd5+ {[%clk 0:00:17.2]} 36... Kh8 {[%clk 0:00:35.7]} 37. Bf3 {[%clk 0:00:17.8]}
37... Rd8 {[%clk 0:00:32.3]} 38. a4 {[%clk 0:00:16.6]} 38... c4 {[%clk
0:00:31.6]} 39. bxc4 {[%clk 0:00:08.8]} 39... Qd3+ {[%clk 0:00:30.3]} 40. Kb2
{[%clk 0:00:03.9]} 40... Qxc4 {[%clk 0:00:30.4]} 41. Re4 {[%clk 0:00:02.4]}
41... Rd2+ {[%clk 0:00:29.5]} 0-1

[Event "Late-Titled-Tuesday-Blitz-April-23-2024"]
[Site "Chess.com"]
[Date "2024.04.23"]
[Round "2"]
[White "lluiss"]
[Black "twitchTriniCupid"]
[Result "0-1"]
[WhiteElo "2135"]
[BlackElo "2458"]
[TimeControl "180+1"]
[EndTime "14:18:22 PDT"]
[Termination "twitchTriniCupid won on time"]

1. Nf3 {[%clk 0:03:00.9]} 1... d5 {[%clk 0:02:58.9]} 2. d4 {[%clk 0:03:00.3]}
2... Nf6 {[%clk 0:02:59.1]} 3. c4 {[%clk 0:03:00.3]} 3... c6 {[%clk 0:02:56.4]}
4. cxd5 {[%clk 0:03:01.2]} 4... cxd5 {[%clk 0:02:56.5]} 5. Nc3 {[%clk
0:03:01.4]} 5... Nc6 {[%clk 0:02:57]} 6. Bf4 {[%clk 0:03:00.7]} 6... Bf5 {[%clk
0:02:57]} 7. e3 {[%clk 0:03:00.7]} 7... e6 {[%clk 0:02:57.2]} 8. Bd3 {[%clk
0:03:01.2]} 8... Bg6 {[%clk 0:02:55]} 9. O-O {[%clk 0:03:00]} 9... Be7 {[%clk
0:02:54.8]} 10. Ne1 {[%clk 0:02:56.5]} 10... O-O {[%clk 0:02:49.2]} 11. Bxg6
{[%clk 0:02:55.2]} 11... hxg6 {[%clk 0:02:48.6]} 12. Nd3 {[%clk 0:02:56.1]}
12... Rc8 {[%clk 0:02:45.6]} 13. Bg5 {[%clk 0:02:55.4]} 13... Nb4 {[%clk
0:02:31.4]} 14. a3 {[%clk 0:02:40.3]} 14... Nxd3 {[%clk 0:02:30.7]} 15. Qxd3
{[%clk 0:02:41.2]} 15... a6 {[%clk 0:02:24.1]} 16. Bxf6 {[%clk 0:02:36.4]} 16...
gxf6 {[%clk 0:02:19.7]} 17. Rfc1 {[%clk 0:02:35.3]} 17... b5 {[%clk 0:02:13.8]}
18. Ne2 {[%clk 0:02:29.8]} 18... Qd6 {[%clk 0:02:06.1]} 19. Rc2 {[%clk
0:02:18.2]} 19... Rc4 {[%clk 0:02:02.5]} 20. b3 {[%clk 0:02:11.5]} 20... Rxc2
{[%clk 0:01:54.1]} 21. Qxc2 {[%clk 0:02:12.4]} 21... Qb6 {[%clk 0:01:38.4]} 22.
Nf4 {[%clk 0:02:05.5]} 22... Kg7 {[%clk 0:01:37.6]} 23. Nd3 {[%clk 0:02:05.5]}
23... Bd6 {[%clk 0:01:37.2]} 24. b4 {[%clk 0:01:59]} 24... Rh8 {[%clk 0:01:34]}
25. g3 {[%clk 0:01:54.3]} 25... f5 {[%clk 0:01:17.1]} 26. Rc1 {[%clk 0:01:53.4]}
26... g5 {[%clk 0:00:50.9]} 27. Qc6 {[%clk 0:01:52.6]} 27... Qb8 {[%clk
0:00:50.4]} 28. Qxa6 {[%clk 0:01:18.4]} 28... f4 {[%clk 0:00:50]} 29. exf4
{[%clk 0:00:27.4]} 29... gxf4 {[%clk 0:00:49.8]} 30. Ne5 {[%clk 0:00:15.3]}
30... Bxe5 {[%clk 0:00:46.4]} 31. dxe5 {[%clk 0:00:15.1]} 31... Qxe5 {[%clk
0:00:44.1]} 32. Qxb5 {[%clk 0:00:14.5]} 32... Qh5 {[%clk 0:00:34.9]} 33. h4
{[%clk 0:00:04.2]} 33... fxg3 {[%clk 0:00:30.7]} 34. fxg3 {[%clk 0:00:04.4]}
34... Qf3 {[%clk 0:00:29.5]} 35. Kh2 {[%clk 0:00:04.1]} 35... Qf2+ {[%clk
0:00:27.7]} 36. Kh3 {[%clk 0:00:04.4]} 36... Qf5+ {[%clk 0:00:19.8]} 37. Kh2
{[%clk 0:00:04.5]} 37... Qe5 {[%clk 0:00:12.7]} 0-1

[Event "Late-Titled-Tuesday-Blitz-April-23-2024"]
[Site "Chess.com"]
[Date "2024.04.23"]
[Round "2"]
[White "temiksmozg"]
[Black "aranibos"]
[Result "1-0"]
[WhiteElo "2715"]
[BlackElo "2264"]
[TimeControl "180+1"]
[EndTime "14:18:27 PDT"]
[Termination "temiksmozg won by resignation"]

1. e4 {[%clk 0:02:39.8]} 1... c6 {[%clk 0:03:00]} 2. Ne2 {[%clk 0:02:37.3]} 2...
d5 {[%clk 0:03:00.3]} 3. e5 {[%clk 0:02:35.5]} 3... c5 {[%clk 0:02:51.5]} 4. d4
{[%clk 0:02:35]} 4... Nc6 {[%clk 0:02:50.4]} 5. dxc5 {[%clk 0:02:34.7]} 5...
Nxe5 {[%clk 0:02:49.8]} 6. b4 {[%clk 0:02:33.9]} 6... Bf5 {[%clk 0:02:41.1]} 7.
Nd4 {[%clk 0:02:29.7]} 7... Bd7 {[%clk 0:02:31.4]} 8. Bb2 {[%clk 0:02:24.1]}
8... Nc4 {[%clk 0:02:21.5]} 9. Bc3 {[%clk 0:02:17.6]} 9... e5 {[%clk 0:01:56.5]}
10. Nf3 {[%clk 0:02:17.2]} 10... f6 {[%clk 0:01:53.3]} 11. Qxd5 {[%clk 0:02:13]}
11... b5 {[%clk 0:01:42.7]} 12. c6 {[%clk 0:02:11.7]} 12... Bf5 {[%clk
0:01:33.2]} 13. Qxb5 {[%clk 0:02:10]} 13... Nd6 {[%clk 0:01:13.7]} 14. c7+
{[%clk 0:02:09.1]} 14... Qd7 {[%clk 0:01:14.3]} 15. Qa5 {[%clk 0:01:45.6]} 15...
Rc8 {[%clk 0:01:03.6]} 16. Qxa7 {[%clk 0:01:38.3]} 16... Rxc7 {[%clk 0:01:03.8]}
17. Qa8+ {[%clk 0:01:38.5]} 17... Rc8 {[%clk 0:01:03.8]} 18. Qd5 {[%clk
0:01:37]} 18... Bxc2 {[%clk 0:01:02.3]} 19. Bd2 {[%clk 0:01:29.4]} 19... Ne7
{[%clk 0:00:57.5]} 20. Qa5 {[%clk 0:01:28.7]} 20... Nc6 {[%clk 0:00:51.1]} 21.
Qa3 {[%clk 0:01:25.4]} 21... e4 {[%clk 0:00:30.1]} 22. Be2 {[%clk 0:01:08]}
22... exf3 {[%clk 0:00:28.9]} 23. Bxf3 {[%clk 0:01:08.9]} 23... Nd4 {[%clk
0:00:19.9]} 24. O-O {[%clk 0:01:08.1]} 24... Nxf3+ {[%clk 0:00:19.1]} 25. Qxf3
{[%clk 0:01:09]} 25... Be4 {[%clk 0:00:18.8]} 26. Re1 {[%clk 0:01:08.5]} 26...
Qe6 {[%clk 0:00:18.6]} 27. Qe2 {[%clk 0:01:06.5]} 27... f5 {[%clk 0:00:17.7]}
28. f3 {[%clk 0:01:06]} 28... Be7 {[%clk 0:00:16.9]} 29. fxe4 {[%clk 0:01:05.6]}
29... Nxe4 {[%clk 0:00:17.5]} 30. Nc3 {[%clk 0:01:00]} 30... O-O {[%clk
0:00:17.4]} 31. Nxe4 {[%clk 0:01:00]} 31... fxe4 {[%clk 0:00:17.9]} 32. Qxe4
{[%clk 0:00:59.2]} 32... Qb6+ {[%clk 0:00:18.3]} 33. Be3 {[%clk 0:00:59.3]}
33... Qc7 {[%clk 0:00:15.9]} 34. a4 {[%clk 0:00:55.2]} 34... Bf6 {[%clk
0:00:13.6]} 35. Rac1 {[%clk 0:00:54.3]} 35... Qd7 {[%clk 0:00:14.1]} 36. b5
{[%clk 0:00:52.4]} 36... Rfe8 {[%clk 0:00:13.7]} 37. Rxc8 {[%clk 0:00:49.2]}
37... Qxc8 {[%clk 0:00:13.7]} 38. Qd5+ {[%clk 0:00:48.8]} 38... Kh8 {[%clk
0:00:13.2]} 39. b6 {[%clk 0:00:46.5]} 39... Qc3 {[%clk 0:00:12.6]} 40. Qd2
{[%clk 0:00:39.2]} 40... Qxd2 {[%clk 0:00:07.2]} 41. Bxd2 {[%clk 0:00:39.2]}
41... Bd4+ {[%clk 0:00:06.3]} 42. Kf1 {[%clk 0:00:37.6]} 42... Rxe1+ {[%clk
0:00:06.6]} 43. Kxe1 {[%clk 0:00:38.1]} 43... Bxb6 {[%clk 0:00:06.9]} 44. a5
{[%clk 0:00:39]} 44... Ba7 {[%clk 0:00:06.8]} 45. Ke2 {[%clk 0:00:39.2]} 45...
Kg8 {[%clk 0:00:06.6]} 46. Be3 {[%clk 0:00:39.4]} 46... Bb8 {[%clk 0:00:07]} 47.
a6 {[%clk 0:00:39.6]} 47... Kf7 {[%clk 0:00:06.1]} 48. a7 {[%clk 0:00:40.5]}
48... Bxa7 {[%clk 0:00:06.2]} 49. Bxa7 {[%clk 0:00:41.4]} 49... g5 {[%clk
0:00:06.4]} 50. Kf3 {[%clk 0:00:42.3]} 50... Kg6 {[%clk 0:00:06.7]} 51. g4
{[%clk 0:00:40.6]} 51... h5 {[%clk 0:00:06.5]} 52. h3 {[%clk 0:00:41.1]} 52...
hxg4+ {[%clk 0:00:05.5]} 53. hxg4 {[%clk 0:00:42]} 1-0

[Event "Late-Titled-Tuesday-Blitz-April-23-2024"]
[Site "Chess.com"]
[Date "2024.04.23"]
[Round "2"]
[White "Russian_berezka"]
[Black "rasmussvane"]
[Result "0-1"]
[WhiteElo "2629"]
[BlackElo "2956"]
[TimeControl "180+1"]
[EndTime "14:18:28 PDT"]
[Termination "rasmussvane won on time"]

1. d4 {[%clk 0:02:22.4]} 1... d5 {[%clk 0:02:59.5]} 2. c4 {[%clk 0:02:22.6]}
2... e6 {[%clk 0:02:59.6]} 3. Nc3 {[%clk 0:02:22.9]} 3... a6 {[%clk 0:02:59.9]}
4. cxd5 {[%clk 0:02:21.7]} 4... exd5 {[%clk 0:03:00.8]} 5. Nf3 {[%clk
0:02:21.7]} 5... Nf6 {[%clk 0:03:01.1]} 6. Bg5 {[%clk 0:02:21.9]} 6... Be6
{[%clk 0:03:01.6]} 7. Bxf6 {[%clk 0:02:21.9]} 7... Qxf6 {[%clk 0:03:02.5]} 8.
Qb3 {[%clk 0:02:22.1]} 8... Ra7 {[%clk 0:03:02]} 9. a3 {[%clk 0:02:20.3]} 9...
Qd8 {[%clk 0:03:00.4]} 10. h4 {[%clk 0:02:20.7]} 10... Be7 {[%clk 0:02:57.7]}
11. e3 {[%clk 0:02:02.8]} 11... Nd7 {[%clk 0:02:53.3]} 12. Qc2 {[%clk
0:01:47.6]} 12... h6 {[%clk 0:02:30.3]} 13. Bd3 {[%clk 0:01:44.2]} 13... Nf6
{[%clk 0:02:26.4]} 14. Ne5 {[%clk 0:01:42.3]} 14... c5 {[%clk 0:02:20.6]} 15.
dxc5 {[%clk 0:01:37]} 15... Qc7 {[%clk 0:02:19.4]} 16. Qa4+ {[%clk 0:01:24.5]}
16... Kf8 {[%clk 0:02:06.8]} 17. Nb5 {[%clk 0:01:00.4]} 17... Qxe5 {[%clk
0:01:30.2]} 18. Nxa7 {[%clk 0:01:00]} 18... Bxc5 {[%clk 0:01:11.4]} 19. Nc6
{[%clk 0:00:41.9]} 19... bxc6 {[%clk 0:01:10.8]} 20. Qxc6 {[%clk 0:00:41.8]}
20... Be7 {[%clk 0:00:59.8]} 21. Qxa6 {[%clk 0:00:33.4]} 21... g6 {[%clk
0:00:54.3]} 22. Qa4 {[%clk 0:00:27.7]} 22... Qxb2 {[%clk 0:00:51.6]} 23. O-O
{[%clk 0:00:25.5]} 23... Kg7 {[%clk 0:00:51]} 24. Qd4 {[%clk 0:00:22.3]} 24...
Bxa3 {[%clk 0:00:40.4]} 25. Qxb2 {[%clk 0:00:15.3]} 25... Bxb2 {[%clk
0:00:40.2]} 26. Ra7 {[%clk 0:00:16.2]} 26... Rc8 {[%clk 0:00:36.2]} 27. f4
{[%clk 0:00:15.1]} 27... Rc3 {[%clk 0:00:21.7]} 28. f5 {[%clk 0:00:15]} 28...
Bd7 {[%clk 0:00:22]} 29. fxg6 {[%clk 0:00:09.1]} 29... Rxd3 {[%clk 0:00:06.1]}
30. gxf7 {[%clk 0:00:09.5]} 30... Be6 {[%clk 0:00:06.3]} 31. f8=Q+ {[%clk
0:00:06.3]} 31... Kxf8 {[%clk 0:00:06.5]} 32. Rh7 {[%clk 0:00:06.3]} 32... Bf7
{[%clk 0:00:05.8]} 33. Rxh6 {[%clk 0:00:06.2]} 33... Kg7 {[%clk 0:00:06.5]} 34.
Rhxf6 {[%clk 0:00:03.3]} 34... Bxf6 {[%clk 0:00:06.5]} 35. h5 {[%clk 0:00:04.2]}
35... Bxh5 {[%clk 0:00:06.5]} 36. Rf5 {[%clk 0:00:04]} 36... Bg6 {[%clk
0:00:06.5]} 37. Rxd5 {[%clk 0:00:04.2]} 37... Rxd5 {[%clk 0:00:06.5]} 0-1

[Event "Late-Titled-Tuesday-Blitz-April-23-2024"]
[Site "Chess.com"]
[Date "2024.04.23"]
[Round "2"]
[White "staz_staz"]
[Black "SultaiC"]
[Result "0-1"]
[WhiteElo "2300"]
[BlackElo "2520"]
[TimeControl "180+1"]
[EndTime "14:18:28 PDT"]
[Termination "SultaiC won on time"]

1. d4 {[%clk 0:03:00.9]} 1... Nf6 {[%clk 0:03:00.6]} 2. Nf3 {[%clk 0:03:00.4]}
2... e6 {[%clk 0:03:01.2]} 3. c4 {[%clk 0:02:59.7]} 3... b6 {[%clk 0:03:01.5]}
4. g3 {[%clk 0:02:59.5]} 4... Bb7 {[%clk 0:03:02.2]} 5. Bg2 {[%clk 0:02:59.6]}
5... Be7 {[%clk 0:03:02.3]} 6. O-O {[%clk 0:02:59.5]} 6... O-O {[%clk
0:03:02.9]} 7. d5 {[%clk 0:02:59.9]} 7... d6 {[%clk 0:03:01.5]} 8. Nc3 {[%clk
0:02:56.3]} 8... e5 {[%clk 0:03:01.1]} 9. a3 {[%clk 0:02:52.1]} 9... Nbd7 {[%clk
0:03:02]} 10. b4 {[%clk 0:02:50.6]} 10... a5 {[%clk 0:03:01.5]} 11. Rb1 {[%clk
0:02:50.8]} 11... axb4 {[%clk 0:03:00.8]} 12. axb4 {[%clk 0:02:51.7]} 12... h6
{[%clk 0:03:00.4]} 13. Ne1 {[%clk 0:02:51.4]} 13... Re8 {[%clk 0:02:59.6]} 14.
Nd3 {[%clk 0:02:51.3]} 14... Nf8 {[%clk 0:02:59.7]} 15. e4 {[%clk 0:02:49.9]}
15... Ng6 {[%clk 0:03:00.2]} 16. h3 {[%clk 0:02:49.4]} 16... Ba6 {[%clk
0:02:57.7]} 17. Qb3 {[%clk 0:02:45]} 17... Bc8 {[%clk 0:02:55]} 18. Be3 {[%clk
0:02:44.4]} 18... Nh7 {[%clk 0:02:54]} 19. c5 {[%clk 0:02:43.4]} 19... f5 {[%clk
0:02:54]} 20. exf5 {[%clk 0:02:38.4]} 20... Bxf5 {[%clk 0:02:54.9]} 21. Rbd1
{[%clk 0:02:36.8]} 21... Bg5 {[%clk 0:02:53.2]} 22. Bxg5 {[%clk 0:02:01.9]}
22... Nxg5 {[%clk 0:02:54.1]} 23. h4 {[%clk 0:02:01.8]} 23... Nh3+ {[%clk
0:02:51.1]} 24. Kh2 {[%clk 0:02:01.2]} 24... Nxh4 {[%clk 0:02:48]} 25. Bxh3
{[%clk 0:01:52.8]} 25... Nf3+ {[%clk 0:02:41.5]} 26. Kg2 {[%clk 0:01:51.5]}
26... Bxh3+ {[%clk 0:02:37.5]} 27. Kxh3 {[%clk 0:01:52.4]} 27... Qg5 {[%clk
0:02:36.4]} 28. Kg2 {[%clk 0:01:32.1]} 28... Nh4+ {[%clk 0:02:35]} 29. Kh2
{[%clk 0:01:20.6]} 29... Rf8 {[%clk 0:02:31.5]} 30. Qc4 {[%clk 0:01:02.2]} 30...
Nf3+ {[%clk 0:02:20.6]} 31. Kg2 {[%clk 0:01:02.2]} 31... Nd2 {[%clk 0:02:14.2]}
32. Qh4 {[%clk 0:00:57.3]} 32... Qxh4 {[%clk 0:02:09.3]} 33. gxh4 {[%clk
0:00:58.2]} 33... Nxf1 {[%clk 0:02:09.4]} 34. Kxf1 {[%clk 0:00:57.4]} 34... Ra3
{[%clk 0:02:09.9]} 35. Rc1 {[%clk 0:00:57.5]} 35... Rf3 {[%clk 0:02:06.8]} 36.
Ke2 {[%clk 0:00:57.4]} 36... Rh3 {[%clk 0:02:06.6]} 37. cxd6 {[%clk 0:00:55.9]}
37... cxd6 {[%clk 0:02:05.9]} 38. f3 {[%clk 0:00:49.5]} 38... Rxh4 {[%clk
0:02:02.4]} 39. Ne4 {[%clk 0:00:49.6]} 39... Rh2+ {[%clk 0:01:58]} 40. Ke3
{[%clk 0:00:49.2]} 40... Rb2 {[%clk 0:01:45.1]} 41. Rc8+ {[%clk 0:00:48.4]}
41... Kh7 {[%clk 0:01:36.3]} 42. Rc6 {[%clk 0:00:21.3]} 42... Rbb3 {[%clk
0:01:34.7]} 43. Nf2 {[%clk 0:00:21.4]} 43... Rxb4 {[%clk 0:01:30.6]} 44. Rxd6
{[%clk 0:00:21.3]} 44... Rd4 {[%clk 0:01:31.2]} 45. Rxb6 {[%clk 0:00:19.7]}
45... Rxd5 {[%clk 0:01:30.9]} 46. Re6 {[%clk 0:00:19.7]} 46... h5 {[%clk
0:01:29.4]} 47. Ke2 {[%clk 0:00:17.1]} 47... h4 {[%clk 0:01:27.4]} 48. Nxe5
{[%clk 0:00:17.3]} 48... Ra2+ {[%clk 0:01:24.9]} 49. Ke3 {[%clk 0:00:16.8]}
49... Ra1 {[%clk 0:01:23.1]} 50. Ne4 {[%clk 0:00:13.3]} 50... Re1+ {[%clk
0:01:20.2]} 51. Kf4 {[%clk 0:00:13.2]} 51... Rd4 {[%clk 0:01:07]} 52. Kf5 {[%clk
0:00:11.9]} 52... Rdxe4 {[%clk 0:00:58.2]} 53. fxe4 {[%clk 0:00:12.8]} 53... h3
{[%clk 0:00:58]} 54. Ng4 {[%clk 0:00:08.3]} 54... Rf1+ {[%clk 0:00:56]} 55. Kg5
{[%clk 0:00:08.3]} 55... Rg1 {[%clk 0:00:54.8]} 56. Rc6 {[%clk 0:00:01.2]} 56...
h2 {[%clk 0:00:54]} 0-1

[Event "Late-Titled-Tuesday-Blitz-April-23-2024"]
[Site "Chess.com"]
[Date "2024.04.23"]
[Round "2"]
[White "Boorchess"]
[Black "chessmoo"]
[Result "1-0"]
[WhiteElo "2542"]
[BlackElo "2348"]
[TimeControl "180+1"]
[EndTime "14:18:30 PDT"]
[Termination "Boorchess won by resignation"]

1. d4 {[%clk 0:03:00.9]} 1... d5 {[%clk 0:02:57.6]} 2. c4 {[%clk 0:03:00.4]}
2... c6 {[%clk 0:02:57.7]} 3. cxd5 {[%clk 0:03:00.4]} 3... cxd5 {[%clk
0:02:56.3]} 4. Nc3 {[%clk 0:03:00.9]} 4... Nf6 {[%clk 0:02:55.9]} 5. f3 {[%clk
0:03:01.2]} 5... Qb6 {[%clk 0:02:55.8]} 6. e3 {[%clk 0:03:00.7]} 6... Nc6 {[%clk
0:02:54.8]} 7. Bb5 {[%clk 0:02:59.1]} 7... Bd7 {[%clk 0:02:42.1]} 8. Nge2 {[%clk
0:02:57.4]} 8... a6 {[%clk 0:02:36.1]} 9. Ba4 {[%clk 0:02:56.4]} 9... e6 {[%clk
0:02:31.2]} 10. O-O {[%clk 0:02:55.2]} 10... Bd6 {[%clk 0:02:18.5]} 11. Kh1
{[%clk 0:02:55.2]} 11... O-O {[%clk 0:01:29.4]} 12. e4 {[%clk 0:02:54.4]} 12...
e5 {[%clk 0:01:22.3]} 13. dxe5 {[%clk 0:02:28.9]} 13... Bxe5 {[%clk 0:01:05.2]}
14. exd5 {[%clk 0:02:21]} 14... Ne7 {[%clk 0:00:57.6]} 15. Bxd7 {[%clk
0:02:15.2]} 15... Nxd7 {[%clk 0:00:57.4]} 16. f4 {[%clk 0:02:10.8]} 16... Bxc3
{[%clk 0:00:44.1]} 17. Nxc3 {[%clk 0:02:00.7]} 17... Nf6 {[%clk 0:00:42.8]} 18.
Qf3 {[%clk 0:01:34.2]} 18... Rad8 {[%clk 0:00:39.3]} 19. Rd1 {[%clk 0:01:29.7]}
19... Rfe8 {[%clk 0:00:32.9]} 20. Be3 {[%clk 0:01:22.1]} 20... Qa5 {[%clk
0:00:33]} 21. Bd4 {[%clk 0:00:45.9]} 21... Nexd5 {[%clk 0:00:31.3]} 22. Nxd5
{[%clk 0:00:44.6]} 22... Qxd5 {[%clk 0:00:31.5]} 23. Bxf6 {[%clk 0:00:30.2]}
23... Qxf3 {[%clk 0:00:31.1]} 24. gxf3 {[%clk 0:00:30.3]} 24... gxf6 {[%clk
0:00:29.3]} 25. Kg2 {[%clk 0:00:13.4]} 25... Re2+ {[%clk 0:00:27.9]} 26. Kg3
{[%clk 0:00:13.7]} 26... Rdd2 {[%clk 0:00:25.3]} 27. Rxd2 {[%clk 0:00:13.3]}
27... Rxd2 {[%clk 0:00:26.2]} 28. b3 {[%clk 0:00:13.6]} 28... Kg7 {[%clk
0:00:25.6]} 29. h4 {[%clk 0:00:12.7]} 29... Kg6 {[%clk 0:00:25.8]} 30. a4 {[%clk
0:00:12.3]} 30... Kf5 {[%clk 0:00:26]} 31. Rc1 {[%clk 0:00:11.8]} 31... b6
{[%clk 0:00:25]} 32. Rc6 {[%clk 0:00:11.4]} 32... Rd1 {[%clk 0:00:18.1]} 33.
Rxb6 {[%clk 0:00:09.6]} 33... Rg1+ {[%clk 0:00:18.2]} 34. Kf2 {[%clk 0:00:09.8]}
34... Rb1 {[%clk 0:00:18.3]} 35. b4 {[%clk 0:00:07.4]} 35... Rb2+ {[%clk
0:00:17.1]} 36. Kg3 {[%clk 0:00:07.2]} 36... Rb3 {[%clk 0:00:17.6]} 37. b5
{[%clk 0:00:07.1]} 37... a5 {[%clk 0:00:18.2]} 38. Ra6 {[%clk 0:00:07.1]} 38...
Rb4 {[%clk 0:00:17.5]} 39. Rxa5 {[%clk 0:00:07.2]} 39... h5 {[%clk 0:00:16.7]}
40. b6+ {[%clk 0:00:07.2]} 40... Kg6 {[%clk 0:00:16]} 41. Rb5 {[%clk 0:00:07.2]}
1-0